bitfinex/quotes_SOLUSD_20260114
["timestamp","ask_amount","ask_price","bid_price","bid_amount"]
[1768395299645,15.19596433,144.49,144.47,0.71814088]
[1768395299941,4.66610252,144.48,144.47,0.71814088]
[1768395300341,5.26911527,144.48,144.46,6.92218156]
[1768395300652,15.80406812,144.49,144.46,0.71814088]
[1768395300949,7.2420732,144.48,144.46,0.71814088]
[1768395301135,2.57596433,144.48,144.46,0.71814088]
[1768395303946,2.67496433,144.48,144.45,0.71814088]
[1768395306352,2.67496433,144.48,144.45,7.640686]
[1768395306855,2.57596433,144.47,144.45,0.71814088]
[1768395307148,2.57596433,144.47,144.44,7.6224492]
[1768395307149,3.17897708,144.47,144.44,7.6224492]
[1768395308551,0.60301275,144.47,144.44,7.6224492]
[1768395310454,0.60301275,144.47,144.45,0.69936572]
[1768395310659,3.18406812,144.48,144.45,0.69936572]
[1768395311757,0.099,144.47,144.44,0.69936572]
[1768395312561,22.7251811,144.49,144.45,0.69936572]
[1768395312753,9.85244615,144.48,144.45,0.69936572]
[1768395313052,22.7251811,144.49,144.45,0.69936572]
[1768395313236,9.85244289,144.48,144.45,0.69936572]
[1768395313437,22.7251811,144.49,144.45,0.69936572]
[1768395313653,9.85225282,144.48,144.45,0.69936572]
[1768395313860,22.7251811,144.49,144.45,0.69936572]
[1768395314161,9.85225569,144.48,144.45,0.69936572]
[1768395314352,22.7251811,144.49,144.45,0.69936572]
[1768395314552,4.66701538,144.48,144.45,0.69936572]
[1768395314853,22.7251811,144.49,144.45,0.69936572]
[1768395315159,4.66701376,144.48,144.45,0.69936572]
[1768395315453,22.7251811,144.49,144.45,0.69936572]
[1768395315638,4.66701799,144.48,144.46,0.69936572]
[1768395315845,12.62,144.49,144.46,0.69936572]
[1768395316043,4.66677423,144.48,144.46,0.69936572]
[1768395316257,12.719,144.49,144.46,0.69936572]
[1768395316462,4.6666191,144.48,144.46,0.69936572]
[1768395316640,12.719,144.49,144.46,0.69936572]
[1768395316842,4.66661747,144.48,144.46,0.69936572]
[1768395317040,12.719,144.49,144.46,0.69936572]
[1768395317248,4.6666191,144.48,144.46,0.69936572]
[1768395317553,12.719,144.49,144.46,0.69936572]
[1768395317857,4.66649672,144.48,144.46,0.69936572]
[1768395318159,12.719,144.49,144.46,0.69936572]
[1768395318459,4.66649672,144.48,144.46,0.69936572]
[1768395318659,12.719,144.49,144.46,0.69936572]
[1768395318840,4.66639415,144.48,144.46,0.69936572]
[1768395319042,12.719,144.49,144.46,0.69936572]
[1768395319241,4.66639415,144.48,144.46,0.69936572]
[1768395319442,12.719,144.49,144.46,0.69936572]
[1768395319648,4.66631233,144.48,144.46,0.69936572]
[1768395319961,12.719,144.49,144.46,0.69936572]
[1768395320160,4.66631233,144.48,144.46,0.69936572]
[1768395320362,12.719,144.49,144.46,0.69936572]
[1768395320566,4.66631371,144.48,144.46,0.69936572]
[1768395320753,12.719,144.49,144.46,0.69936572]
[1768395320950,4.66631209,144.48,144.46,0.69936572]
[1768395321150,12.719,144.49,144.46,0.69936572]
[1768395321354,4.66631209,144.48,144.46,0.69936572]
[1768395321660,12.62,144.49,144.46,0.69936572]
[1768395321853,4.66657216,144.48,144.46,0.69936572]
[1768395322053,12.62,144.49,144.46,0.69936572]
[1768395322361,4.66657216,144.48,144.46,0.69936572]
[1768395322561,12.719,144.49,144.46,0.69936572]
[1768395322764,4.66689287,144.48,144.46,7.62169132]
[1768395322946,12.719,144.49,144.46,7.62169132]
[1768395323143,4.66688967,144.48,144.46,7.62169132]
[1768395323341,12.719,144.49,144.46,7.62169132]
[1768395323553,4.66728485,144.48,144.46,7.62169132]
[1768395323754,12.719,144.49,144.46,7.62169132]
[1768395323955,4.66728485,144.48,144.46,7.62169132]
[1768395324155,12.719,144.49,144.46,7.62169132]
[1768395324357,4.66728485,144.48,144.46,7.62169132]
[1768395324566,12.719,144.49,144.46,7.62169132]
[1768395324862,4.66775859,144.48,144.46,7.62169132]
[1768395325065,12.719,144.49,144.46,7.62169132]
[1768395325271,4.66775859,144.48,144.46,7.62169132]
[1768395325455,12.719,144.49,144.46,7.62169132]
[1768395325654,4.66774865,144.48,144.46,7.62169132]
[1768395325865,12.719,144.49,144.46,7.62169132]
[1768395326067,4.66774865,144.48,144.46,7.62169132]
[1768395326368,12.719,144.49,144.46,7.62169132]
[1768395326564,4.66775772,144.48,144.46,7.62169132]
[1768395326771,12.719,144.49,144.46,7.62169132]
[1768395327066,4.66775772,144.48,144.46,7.62169132]
[1768395327264,12.719,144.49,144.44,2.57596433]
[1768395327580,12.719,144.49,144.44,4.02403166]
[1768395327965,12.719,144.49,144.41,4.02403166]
[1768395328165,12.719,144.49,144.44,4.02403166]
[1768395328469,12.719,144.49,144.45,6.92281066]
[1768395329172,12.719,144.49,144.46,0.68279198]
[1768395330874,102.9,144.51,144.46,0.68279198]
[1768395330875,102.9,144.51,144.48,0.68279198]
[1768395331075,103.59997707,144.51,144.48,0.68279198]
[1768395333075,4.72444917,144.5,144.47,0.68279198]
[1768395333262,4.7244448,144.48,144.46,0.68279198]
[1768395333464,0.70041314,144.48,144.46,0.68279198]
[1768395333669,4.7244448,144.48,144.46,0.68279198]
[1768395339475,13.27262819,144.49,144.46,0.68279198]
[1768395339974,17.29665985,144.49,144.46,0.68279198]
[1768395342678,4.67665985,144.48,144.46,0.67273393]
[1768395342973,4.67665985,144.48,144.45,7.59537766]
[1768395343273,4.67665985,144.48,144.45,0.67273393]
[1768395343594,4.67665985,144.47,144.44,0.67273393]
[1768395343777,12.62,144.46,144.44,0.67273393]
[1768395345582,12.62,144.46,144.44,7.59590481]
[1768395345783,12.62,144.48,144.45,0.67273393]
[1768395346865,12.62,144.48,144.46,7.59506537]
[1768395348867,4.67665985,144.49,144.46,7.59506537]
[1768395350194,0.65262819,144.49,144.46,7.59506537]
[1768395350377,4.67665985,144.49,144.46,7.59506537]
[1768395352013,0.65262819,144.49,144.46,7.59506537]
[1768395352292,4.67665985,144.49,144.46,7.59506537]
[1768395353990,0.65262819,144.48,144.45,7.59554459]
[1768395354193,4.67665985,144.49,144.46,0.67273393]
[1768395354379,0.65262819,144.48,144.46,0.67273393]
[1768395355590,0.65262819,144.48,144.45,7.59554459]
[1768395356677,4.67665985,144.48,144.45,7.59554459]
[1768395357083,4.02403166,144.48,144.46,0.67273393]
[1768395357286,4.67665985,144.48,144.46,0.67273393]
[1768395357590,4.67665985,144.48,144.46,6.9222774]
[1768395359293,0.65262819,144.48,144.46,6.9222774]
[1768395360397,4.67665985,144.48,144.46,6.9222774]
[1768395361579,4.67665985,144.48,144.46,7.59501133]
[1768395374195,0.65262819,144.48,144.46,7.59501133]
[1768395381615,0.65262819,144.48,144.45,0.6724525]
[1768395383414,4.02403166,144.49,144.47,0.6724525]
[1768395383728,4.68026252,144.49,144.47,0.6724525]
[1768395384030,4.68026252,144.49,144.46,7.59478394]
[1768395387214,4.02403166,144.48,144.46,7.59478394]
[1768395387421,2.57593148,144.48,144.46,7.59478394]
[1768395387725,3.23216234,144.48,144.46,6.92233144]
[1768395388819,0.65623086,144.48,144.46,6.92233144]
[1768395390128,0.65623086,144.48,144.46,0.6724525]
[1768395390310,2.57593148,144.49,144.46,0.6724525]
[1768395390499,3.23216234,144.49,144.46,0.6724525]
[1768395392122,0.65623086,144.48,144.46,6.92217989]
[1768395392727,0.65623086,144.48,144.46,7.59463239]
[1768395392927,3.23216234,144.49,144.46,7.59463239]
[1768395393426,0.65623086,144.48,144.45,0.6724525]
[1768395394627,0.65623086,144.49,144.46,7.59478394]
[1768395394831,22.77261024,144.5,144.47,0.6724525]
[1768395395034,4.66983588,144.49,144.47,0.6724525]
[1768395395218,22.77261024,144.5,144.47,0.6724525]
[1768395395513,4.66973486,144.49,144.47,0.6724525]
[1768395395717,22.77261024,144.5,144.47,0.6724525]
[1768395395914,4.66973486,144.49,144.47,0.6724525]
[1768395396115,22.77261024,144.5,144.47,0.6724525]
[1768395396326,4.66973649,144.49,144.47,0.6724525]
[1768395396517,103.62049589,144.51,144.48,0.72095591]
[1768395396720,4.66966072,144.5,144.48,0.72095591]
[1768395397028,0.72049589,144.52,144.48,0.72095591]
[1768395397324,9.85756606,144.51,144.48,0.72095591]
[1768395397528,9.85633008,144.5,144.48,0.72095591]
[1768395397728,0.68010388,144.51,144.49,6.92089417]
[1768395398024,5.18695745,144.5,144.49,7.64185008]
[1768395398408,3.29642737,144.52,144.49,7.64185008]
[1768395398610,4.66743125,144.51,144.49,7.64185008]
[1768395398939,3.29642737,144.52,144.49,7.64185008]
[1768395399144,4.66742799,144.51,144.49,7.64185008]
[1768395399319,3.29642737,144.52,144.49,7.64185008]
[1768395399505,4.66677823,144.51,144.49,7.64185008]
[1768395399699,3.29642737,144.52,144.49,7.64185008]
[1768395399925,4.66677823,144.51,144.49,7.64185008]
[1768395400133,3.29642737,144.52,144.49,7.64185008]
[1768395400306,4.66677823,144.51,144.49,7.64185008]
[1768395400511,3.29642737,144.52,144.49,7.64185008]
[1768395400732,4.66623534,144.51,144.49,7.64185008]
[1768395401028,7.63952818,144.53,144.5,7.64135905]
[1768395401215,20.25952818,144.53,144.5,7.64135905]
[1768395402438,13.34049589,144.53,144.5,7.64135905]
[1768395402617,3.29642737,144.54,144.51,0.72095591]
[1768395402824,0.72049589,144.54,144.51,0.72095591]
[1768395403027,0.72049589,144.54,144.51,7.64043355]
[1768395403920,0.72049589,144.54,144.51,10.21636503]
[1768395405016,0.72049589,144.54,144.51,7.64043355]
[1768395405533,0.72049589,144.54,144.51,6.91947764]
[1768395405731,0.72049589,144.54,144.51,7.64043355]
[1768395419232,0.72049589,144.54,144.51,10.21636503]
[1768395425955,0.72049589,144.54,144.51,7.64043355]
[1768395426258,0.72049589,144.54,144.51,10.21636503]
[1768395428652,0.72049589,144.54,144.51,7.64043355]
[1768395430766,0.72049589,144.54,144.51,6.91947764]
[1768395431059,0.72049589,144.54,144.51,7.61040589]
[1768395432637,0.72049589,144.54,144.51,10.18633737]
[1768395433759,0.72049589,144.54,144.51,7.61040589]
[1768395438563,0.72049589,144.54,144.51,6.91947764]
[1768395441669,0.72049589,144.54,144.51,0.67104589]
[1768395441870,0.72049589,144.54,144.5,27.46843065]
[1768395442354,0.72049589,144.54,144.51,0.67104589]
[1768395444071,0.72049589,144.54,144.52,6.91945751]
[1768395450183,116.20843238,144.55,144.52,0.67104589]
[1768395450372,4.66908344,144.54,144.52,0.67104589]
[1768395450572,116.20843238,144.55,144.52,0.67104589]
[1768395450882,4.66908344,144.54,144.52,0.67104589]
[1768395451089,116.20843238,144.55,144.52,0.67104589]
[1768395451266,4.66909124,144.54,144.52,0.67104589]
[1768395451575,0.68843238,144.54,144.51,24.89082306]
[1768395451878,0.68843238,144.54,144.51,23.50074004]
[1768395452178,116.10843238,144.55,144.51,24.17178593]
[1768395452361,4.66912342,144.54,144.51,24.17178593]
[1768395452561,116.10843238,144.55,144.52,0.67104589]
[1768395452752,4.66912179,144.54,144.52,0.67104589]
[1768395452952,116.10843238,144.55,144.52,0.67104589]
[1768395453152,4.66912179,144.54,144.52,0.67104589]
[1768395453371,116.10843238,144.55,144.52,0.67104589]
[1768395453576,4.66914168,144.54,144.52,0.67104589]
[1768395453880,116.10843238,144.55,144.52,0.67104589]
[1768395454064,4.66914168,144.54,144.52,0.67104589]
[1768395454265,116.10843238,144.55,144.52,0.67104589]
[1768395454468,4.66923446,144.54,144.52,7.59047517]
[1768395454660,116.10843238,144.55,144.52,7.59047517]
[1768395454959,4.66923446,144.54,144.52,7.59047517]
[1768395455158,116.10843238,144.55,144.52,7.59047517]
[1768395455363,4.66935816,144.54,144.52,7.59047517]
[1768395455572,116.10843238,144.55,144.52,7.59047517]
[1768395455871,4.66935653,144.54,144.52,7.59047517]
[1768395456197,116.10843238,144.55,144.52,7.59047517]
[1768395456380,4.66935603,144.54,144.52,7.59047517]
[1768395456580,116.10843238,144.55,144.52,7.59047517]
[1768395456876,4.66935604,144.54,144.52,7.59047517]
[1768395457080,116.10843238,144.55,144.52,7.59047517]
[1768395457266,4.66935865,144.54,144.52,7.59047517]
[1768395457566,116.10843238,144.55,144.52,7.59047517]
[1768395457767,4.66935421,144.54,144.52,7.59047517]
[1768395457956,116.10843238,144.55,144.52,7.59047517]
[1768395458274,4.66935421,144.54,144.52,7.59047517]
[1768395458477,116.10843238,144.55,144.52,7.59047517]
[1768395458664,4.66935246,144.54,144.52,7.59047517]
[1768395458865,116.10843238,144.55,144.52,7.59047517]
[1768395459066,4.66935409,144.54,144.52,7.59047517]
[1768395459265,116.10843238,144.55,144.52,7.59047517]
[1768395459466,4.66935177,144.54,144.52,7.59047517]
[1768395459682,116.10843238,144.55,144.52,7.59047517]
[1768395459883,4.66935177,144.54,144.52,7.59047517]
[1768395460054,116.10843238,144.55,144.52,7.59047517]
[1768395460257,4.66935177,144.54,144.52,7.59047517]
[1768395460453,116.10843238,144.55,144.52,7.59047517]
[1768395460664,4.66935017,144.54,144.52,7.59047517]
[1768395460864,116.10843238,144.55,144.52,7.59047517]
[1768395461075,4.66935017,144.54,144.52,7.59047517]
[1768395461281,116.10843238,144.55,144.52,7.59047517]
[1768395461481,4.66934957,144.54,144.52,7.59047517]
[1768395461790,116.10843238,144.55,144.52,7.59047517]
[1768395461995,4.66934957,144.54,144.52,7.59047517]
[1768395462193,116.10843238,144.55,144.52,7.59047517]
[1768395462358,4.669349,144.54,144.52,7.59047517]
[1768395462659,116.10843238,144.55,144.52,7.59047517]
[1768395462959,4.669349,144.54,144.52,7.59047517]
[1768395463159,116.10843238,144.55,144.52,7.59047517]
[1768395463360,4.66934846,144.54,144.52,7.59047517]
[1768395463556,116.10843238,144.55,144.52,7.59047517]
[1768395463775,4.66934846,144.54,144.52,7.59047517]
[1768395464060,116.10843238,144.55,144.52,7.59047517]
[1768395464260,4.66934846,144.54,144.52,7.59047517]
[1768395464578,116.10843238,144.55,144.52,7.59047517]
[1768395464769,4.66934711,144.54,144.52,7.59047517]
[1768395464962,116.10843238,144.55,144.52,7.59047517]
[1768395465261,4.66934711,144.54,144.52,7.59047517]
[1768395465461,116.10843238,144.55,144.52,7.59047517]
[1768395465660,4.66935036,144.54,144.52,7.59047517]
[1768395465962,116.10843238,144.55,144.52,7.59047517]
[1768395466164,4.66935036,144.54,144.52,7.59047517]
[1768395466370,116.10843238,144.55,144.52,7.59047517]
[1768395466571,4.66934918,144.54,144.52,7.59047517]
[1768395466773,116.10843238,144.55,144.52,7.59047517]
[1768395466974,4.66934918,144.54,144.52,7.59047517]
[1768395467271,116.10843238,144.55,144.52,7.59047517]
[1768395467568,4.66934883,144.54,144.52,7.59047517]
[1768395467768,116.10843238,144.55,144.52,7.59047517]
[1768395467980,4.66934883,144.54,144.52,7.59047517]
[1768395468176,116.10843238,144.55,144.52,7.59047517]
[1768395468364,9.8581783,144.54,144.52,7.59047517]
[1768395468563,116.10843238,144.55,144.52,7.59047517]
[1768395468760,9.85817944,144.54,144.52,7.59047517]
[1768395468980,116.10843238,144.55,144.52,7.59047517]
[1768395469177,9.858176,144.54,144.52,7.59047517]
[1768395469377,116.10843238,144.55,144.52,7.59047517]
[1768395469585,9.858175,144.54,144.52,7.59047517]
[1768395469765,116.10843238,144.55,144.52,7.59047517]
[1768395469966,9.858175,144.54,144.52,7.59047517]
[1768395470165,116.10843238,144.55,144.52,7.59047517]
[1768395470365,9.85817707,144.54,144.52,7.59047517]
[1768395470581,116.10843238,144.55,144.52,7.59047517]
[1768395470772,9.85817526,144.54,144.52,7.59047517]
[1768395470975,116.10843238,144.55,144.52,7.59047517]
[1768395471200,9.85817526,144.54,144.52,7.59047517]
[1768395471389,116.10843238,144.55,144.52,7.59047517]
[1768395471592,9.95717482,144.54,144.52,6.91942928]
[1768395471891,0.099,144.54,144.52,6.91942928]
[1768395473093,0.099,144.54,144.51,7.61724729]
[1768395473993,0.099,144.54,144.51,6.91971325]
[1768395474695,0.099,144.54,144.51,0.69753404]
[1768395476004,0.099,144.54,144.51,7.61705199]
[1768395478198,5.25359238,144.53,144.49,0.69753404]
[1768395478501,0.58353805,144.53,144.49,0.69753404]
[1768395478795,0.58353805,144.53,144.5,0.69753404]
[1768395479189,7.50712814,144.54,144.51,7.61747037]
[1768395480601,0.58843238,144.54,144.51,7.61747037]
[1768395483307,7.50697928,144.54,144.51,7.61747037]
[1768395483609,11.52770368,144.54,144.51,7.61747037]
[1768395486687,0.099,144.53,144.5,7.59392194]
[1768395491296,0.099,144.53,144.5,6.92041522]
[1768395492212,12.62,144.52,144.5,6.92041522]
[1768395493313,12.62,144.52,144.5,7.59392194]
[1768395503129,12.62,144.52,144.51,0.67710809]
[1768395504123,12.62,144.52,144.5,7.59752331]
[1768395506124,13.20353805,144.52,144.5,6.92041522]
[1768395506727,12.62,144.52,144.5,7.59752331]
[1768395507823,10.12,144.52,144.5,7.59752331]
[1768395508030,0.58843238,144.53,144.5,7.59752331]
[1768395512606,12.62,144.54,144.51,0.67710809]
[1768395512928,15.19388501,144.54,144.5,6.92041522]
[1768395513122,0.58843238,144.53,144.5,6.92041522]
[1768395513826,0.58843238,144.53,144.5,7.59752331]
[1768395525137,0.58843238,144.53,144.49,0.69554422]
[1768395525637,0.58843238,144.53,144.5,0.69554422]
[1768395526137,0.58843238,144.53,144.51,6.91993633]
[1768395533946,13.28231739,144.54,144.51,6.91993633]
[1768395536452,20.20086806,144.54,144.51,6.91993633]
[1768395537649,17.62698305,144.54,144.51,0.69554422]
[1768395537951,20.20086806,144.54,144.51,0.69554422]
[1768395540147,17.62698305,144.54,144.51,0.69554422]
[1768395543731,10.70843238,144.54,144.51,7.615347]
[1768395543935,4.66981157,144.53,144.51,7.615347]
[1768395544151,10.70843238,144.54,144.51,7.615347]
[1768395544344,4.66980898,144.53,144.51,7.615347]
[1768395544542,10.70843238,144.54,144.51,7.615347]
[1768395544742,4.66980917,144.53,144.51,7.615347]
[1768395544949,10.70843238,144.54,144.51,7.615347]
[1768395545152,4.66980917,144.53,144.51,7.615347]
[1768395545461,13.28231739,144.54,144.51,7.615347]
[1768395545759,4.66980449,144.53,144.51,7.615347]
[1768395545962,13.28231739,144.54,144.51,7.615347]
[1768395546160,4.66980449,144.53,144.51,7.615347]
[1768395546460,13.28231739,144.54,144.51,7.615347]
[1768395546636,4.66980061,144.53,144.51,7.615347]
[1768395546837,13.28231739,144.54,144.51,7.615347]
[1768395547036,4.66980061,144.53,144.51,7.615347]
[1768395547336,13.28231739,144.54,144.51,7.615347]
[1768395547535,4.66980052,144.53,144.51,7.615347]
[1768395547749,13.28231739,144.54,144.51,7.615347]
[1768395548050,4.66980052,144.53,144.51,7.615347]
[1768395548235,13.28231739,144.54,144.51,7.615347]
[1768395548435,4.669799,144.53,144.51,7.615347]
[1768395548658,13.28231739,144.54,144.51,7.615347]
[1768395548861,4.669799,144.53,144.51,7.615347]
[1768395549045,13.28231739,144.54,144.51,7.615347]
[1768395549363,4.669799,144.53,144.51,7.615347]
[1768395549565,10.70843238,144.54,144.51,7.615347]
[1768395549741,4.66979702,144.53,144.51,7.615347]
[1768395549942,10.70843238,144.54,144.51,7.615347]
[1768395550156,4.66979702,144.53,144.51,7.615347]
[1768395550359,2.57388501,144.54,144.51,7.615347]
[1768395550565,4.66979567,144.53,144.51,7.615347]
[1768395550747,2.57388501,144.54,144.51,7.615347]
[1768395550948,4.66979567,144.53,144.51,7.615347]
[1768395551151,2.57388501,144.54,144.51,7.615347]
[1768395551346,4.6697973,144.53,144.48,0.71518044]
[1768395551663,4.67009524,144.52,144.49,0.71518044]
[1768395551862,2.57388501,144.53,144.49,0.71518044]
[1768395552345,2.57388501,144.53,144.49,7.6357986]
[1768395553777,102.9,144.52,144.49,7.6357986]
[1768395554341,105.47388501,144.52,144.49,7.6357986]
[1768395555057,102.9,144.52,144.49,7.6357986]
[1768395557261,120.20463071,144.52,144.49,7.6357986]
[1768395560864,129.69804261,144.52,144.49,0.71518044]
[1768395561045,112.3934119,144.52,144.48,7.58230829]
[1768395561245,120.20463071,144.51,144.48,7.58230829]
[1768395562542,120.20463071,144.51,144.49,0.66100577]
[1768395564377,102.9,144.51,144.49,0.66100577]
[1768395569068,102.9,144.51,144.48,7.58230829]
[1768395571061,123.66052731,144.51,144.48,7.58230829]
[1768395571969,123.66052731,144.51,144.49,0.66100577]
[1768395572475,123.66052731,144.51,144.48,6.92130252]
[1768395572849,123.66052731,144.51,144.48,7.58230829]
[1768395573471,134.60312334,144.51,144.48,0.66100577]
[1768395573878,113.84259603,144.51,144.48,0.66100577]
[1768395574172,6.92169557,144.5,144.48,0.66100577]
[1768395578588,106.92245714,144.49,144.46,0.65514476]
[1768395578964,106.89245715,144.49,144.46,0.65514476]
[1768395579163,113.81511162,144.49,144.46,0.65514476]
[1768395580179,109.79265448,144.49,144.46,0.65514476]
[1768395580382,109.79265448,144.49,144.46,7.57736069]
[1768395580585,109.76265449,144.49,144.46,7.57736069]
[1768395581166,116.68356953,144.49,144.46,7.57736069]
[1768395586786,116.68356953,144.49,144.46,0.65514476]
[1768395593398,116.68356953,144.49,144.46,4.6776019]
[1768395598205,116.68356953,144.49,144.46,0.65514476]
[1768395598392,116.68356953,144.49,144.46,4.6776019]
[1768395600304,116.68356953,144.49,144.46,0.65514476]
[1768395600480,116.68356953,144.49,144.46,4.6776019]
[1768395600882,109.76091506,144.49,144.46,4.6776019]
[1768395601393,109.76091506,144.49,144.46,11.59991135]
[1768395601702,17.29794856,144.53,144.49,0.65514476]
[1768395602005,38.05703931,144.53,144.49,4.6776019]
[1768395602208,6.91992987,144.52,144.49,4.6776019]
[1768395602396,6.91992987,144.52,144.49,0.65514476]
[1768395604185,6.91992987,144.52,144.5,0.65514476]
[1768395605609,24.21692731,144.53,144.5,0.65514476]
[1768395607098,24.21692731,144.53,144.49,0.65726999]
[1768395608787,28.23938445,144.53,144.49,0.65726999]
[1768395616214,4.02245714,144.52,144.49,0.65726999]
[1768395616995,4.02245714,144.51,144.48,0.65726999]
[1768395617195,4.02245714,144.52,144.48,0.65726999]
[1768395618103,6.91993633,144.51,144.48,0.65726999]
[1768395618514,6.92167442,144.53,144.48,10.94359759]
[1768395618815,106.92245714,144.54,144.48,6.92114045]
[1768395619007,103.6088287,144.54,144.49,0.65726999]
[1768395619592,110.5277168,144.54,144.5,0.65726999]
[1768395621393,109.8188881,144.54,144.5,0.65726999]
[1768395621600,7.60601454,144.53,144.5,0.65726999]
[1768395628906,7.6063063,144.52,144.5,0.65726999]
[1768395629114,7.6063063,144.52,144.49,0.71217417]
[1768395634213,7.6063063,144.52,144.49,7.63304565]
[1768395635908,7.6063063,144.52,144.49,0.71217417]
[1768395636713,0.72075592,144.51,144.47,7.58301976]
[1768395636915,9.49344903,144.52,144.48,0.66133481]
[1768395637224,0.72075592,144.51,144.48,0.66133481]
[1768395638427,0.72075592,144.53,144.49,0.66133481]
[1768395639629,0.72075592,144.52,144.49,0.66133481]
[1768395640148,0.72075592,144.52,144.49,7.58214166]
[1768395640517,7.63989033,144.53,144.5,0.66133481]
[1768395641025,110.53925918,144.54,144.5,0.66133481]
[1768395641624,110.53925918,144.54,144.51,0.66133481]
[1768395641818,0.72075592,144.53,144.51,0.66133481]
[1768395650929,0.22075592,144.53,144.51,0.66133481]
[1768395651235,0.22075592,144.53,144.5,6.92021353]
[1768395651435,0.22075592,144.53,144.5,7.58154834]
[1768395653049,3.29469076,144.52,144.49,7.58201215]
[1768395655137,0.72075592,144.52,144.49,7.58201215]
[1768395657351,0.72075592,144.52,144.49,0.66133481]
[1768395657352,10.21416558,144.52,144.49,0.66133481]
[1768395657741,0.32595163,144.51,144.49,0.66133481]
[1768395657930,0.29595164,144.51,144.49,0.66133481]
[1768395658251,6.91947482,144.52,144.49,0.66133481]
[1768395658438,9.49340966,144.52,144.49,7.58217512]
[1768395659831,10.21416558,144.52,144.49,7.58217512]
[1768395660330,10.21416558,144.52,144.49,0.66133481]
[1768395661251,10.21416558,144.52,144.49,7.58218744]
[1768395661446,0.29625164,144.51,144.48,7.58250797]
[1768395661629,2.87018648,144.51,144.48,7.58250797]
[1768395661833,0.29625164,144.51,144.48,7.58250797]
[1768395662549,0.29625164,144.51,144.49,0.66133481]
[1768395664348,10.21416558,144.52,144.49,0.66133481]
[1768395665056,113.11416558,144.52,144.49,0.66133481]
[1768395667541,0.29625164,144.51,144.49,0.66133481]
[1768395668559,0.30776502,144.49,144.45,0.72184418]
[1768395668750,0.70511264,144.48,144.45,7.64427535]
[1768395669058,0.67880893,144.48,144.45,7.64427535]
[1768395670255,0.67880893,144.48,144.46,0.72184418]
[1768395670461,10.1741519,144.48,144.45,0.72184418]
[1768395672163,2.88567333,144.47,144.44,0.72184418]
[1768395673559,0.31173849,144.47,144.44,0.72184418]
[1768395673871,2.88567333,144.47,144.44,0.72184418]
[1768395674246,0.67513823,144.46,144.43,6.92355277]
[1768395674440,0.67513823,144.46,144.43,7.64539695]
[1768395674645,0.67513823,144.46,144.42,0.72184418]
[1768395674646,3.24907307,144.46,144.42,0.72184418]
[1768395675458,3.24907307,144.46,144.43,6.92371964]
[1768395675769,7.63111808,144.47,144.44,0.72184418]
[1768395675946,10.20505292,144.47,144.44,0.72184418]
[1768395676147,7.63111808,144.47,144.44,0.72184418]
[1768395677766,0.28172434,144.46,144.43,0.72184418]
[1768395677967,0.70485224,144.45,144.41,0.72184418]
[1768395678261,0.28595561,144.44,144.41,0.72184418]
[1768395679047,0.70066328,144.43,144.4,7.64675641]
[1768395680147,0.70066328,144.43,144.4,0.72184418]
[1768395680462,7.62474502,144.43,144.4,0.72184418]
[1768395680657,7.59843784,144.43,144.4,0.72184418]
[1768395681248,0.6743561,144.43,144.41,0.67802342]
[1768395681447,6.92348204,144.44,144.41,0.67802342]
[1768395682668,7.63973301,144.44,144.41,0.67802342]
[1768395683947,0.24862676,144.43,144.4,7.60321649]
[1768395684148,10.21366785,144.44,144.41,0.67802342]
[1768395684355,7.63973301,144.44,144.41,0.67802342]
[1768395684667,0.71157473,144.42,144.39,7.60358343]
[1768395684843,2.57393484,144.43,144.4,0.67802342]
[1768395685044,7.95233655,144.57,144.43,0.67802342]
[1768395685045,6.92203724,144.47,144.43,0.67802342]
[1768395686272,9.49597208,144.47,144.43,0.67802342]
[1768395686568,9.49597208,144.47,144.42,10.17583367]
[1768395686975,0.71625097,144.46,144.42,10.17583367]
[1768395688168,0.71625097,144.45,144.41,0.67802342]
[1768395690065,0.71625097,144.45,144.41,10.17644534]
[1768395691950,0.71625097,144.44,144.41,7.6025105]
[1768395692151,0.71625097,144.44,144.41,10.17644534]
[1768395693375,0.71625097,144.44,144.41,11.62820323]
[1768395693552,0.71625097,144.44,144.41,7.6025105]
[1768395693868,7.63957486,144.44,144.41,0.67802342]
[1768395694374,0.71625097,144.44,144.41,7.60273413]
[1768395697673,0.65481339,144.43,144.39,7.59379074]
[1768395699161,30.65481339,144.43,144.39,7.59379074]
[1768395699976,0.65481339,144.42,144.39,7.59379074]
[1768395700768,102.82981339,144.44,144.41,0.66841416]
[1768395702671,102.82981339,144.44,144.41,11.61874925]
[1768395702881,102.82981339,144.44,144.41,7.59305652]
[1768395708083,0.65481339,144.43,144.39,0.66841416]
[1768395708587,0.65481339,144.42,144.39,7.59399602]
[1768395708783,0.6248134,144.42,144.39,7.59399602]
[1768395712188,0.6248134,144.42,144.4,0.66841416]
[1768395713281,0.6248134,144.42,144.4,7.5934028]
[1768395715269,0.59481341,144.42,144.4,7.5934028]
[1768395717180,0.59481341,144.42,144.39,7.59386937]